fUST/lending_fUST_20250114
["ID","MTS","AMOUNT","RATE_DAILY","PERIOD"]
[348890079,1736857839153,-500.0,0.00022054,3]
[348890081,1736857839164,-500.0,0.00022054,3]
[348890084,1736857839176,-500.0,0.00022054,3]
[348890086,1736857839186,-500.0,0.00022054,3]
[348890088,1736857839195,-531.33101352,0.00022054,3]
[348890090,1736857839204,-3234.71,0.00022054,3]
[348890091,1736857839214,-1278.3,0.00022054,3]
[348890094,1736857839224,-519.78,0.00022054,3]
[348890096,1736857839234,-500.0,0.00022054,3]
[348890097,1736857839245,-500.0,0.00022054,3]
[348890099,1736857839254,-500.0,0.00022054,3]
[348890102,1736857839263,-723.07,0.00022054,3]
[348890104,1736857839272,-500.0,0.00022054,3]
[348890106,1736857839281,-500.0,0.00022054,3]
[348890108,1736857839291,-514.87043599,0.00022054,3]
[348890110,1736857839300,-500.0,0.00022054,3]
[348890112,1736857839309,-2617.93,0.00022054,3]
[348890114,1736857839318,-682.87,0.00022054,3]
[348890116,1736857839327,-500.0,0.00022054,3]
[348890117,1736857839337,-500.0,0.00022054,3]
[348890119,1736857839346,-835.18,0.00022054,3]
[348890121,1736857839356,-800.38,0.00022054,3]
[348890124,1736857839365,-1369.47,0.00022054,3]
[348890125,1736857839374,-500.0,0.00022054,3]
[348890128,1736857839384,-504.67,0.00022054,3]
[348890129,1736857839394,-500.0,0.00022054,3]
[348890132,1736857839404,-500.0,0.00022054,3]
[348890134,1736857839414,-500.0,0.00022054,3]
[348890136,1736857839424,-1827.1,0.00022054,3]
[348890138,1736857839434,-1006.65,0.00022054,3]
[348890140,1736857839444,-529.47,0.00022054,3]
[348890142,1736857839454,-578.75,0.00022054,3]
[348890144,1736857839465,-1694.73,0.00022054,3]
[348890146,1736857839475,-500.0,0.00022054,3]
[348890148,1736857839484,-590.67,0.00022054,3]
[348890150,1736857839493,-537.32,0.00022054,3]
[348890152,1736857839503,-1260.82,0.00022054,3]
[348890154,1736857839512,-798.3,0.00022054,3]
[348890156,1736857839521,-500.0,0.00022054,3]
[348890157,1736857839532,-500.0,0.00022054,3]
[348890159,1736857839541,-1482.6,0.00022054,3]
[348890162,1736857839551,-1394.69,0.00022054,3]
[348890163,1736857839561,-791.28,0.00022054,3]
[348890166,1736857839571,-500.0,0.00022054,3]
[348890168,1736857839582,-4247.35,0.00022054,3]
[348890170,1736857839592,-500.0,0.00022054,3]
[348890172,1736857839602,-500.0,0.00022054,3]
[348890174,1736857839612,-865.68,0.00022054,3]
[348890176,1736857839621,-500.0,0.00022054,3]
[348890178,1736857839631,-500.0,0.00022054,3]
[348890180,1736857839641,-1386.0,0.00022054,3]
[348890182,1736857839649,-500.0,0.00022054,3]
[348890183,1736857839659,-177.15841999,0.00022054,3]
[348890185,1736857839669,-556.13,0.00022054,3]
[348890188,1736857839680,-150.18,0.00022054,3]
[348890191,1736857839690,-500.0,0.00022054,3]
[348890193,1736857839699,-500.0,0.00022054,3]
[348890195,1736857839709,-500.0,0.00022054,3]
[348890197,1736857839719,-500.0,0.00022054,3]
[348890199,1736857839728,-509.57,0.00022054,3]
[348890201,1736857839738,-150.18,0.00022054,2]
[348890203,1736857839747,-150.18,0.00022054,3]
[348890205,1736857839757,-519.93,0.00022054,3]
[348890208,1736857839766,-500.0,0.00022054,3]
[348890210,1736857839776,-500.0,0.00022054,3]
[348890213,1736857839785,-500.0,0.00022054,3]
[348890215,1736857839794,-500.0,0.00022054,3]
[348890216,1736857839803,-500.0,0.00022054,3]
[348890219,1736857839812,-625.5,0.00022054,3]
[348890222,1736857839821,-855.29,0.00022054,3]
[348890224,1736857839831,-509.08,0.00022054,3]
[348890226,1736857839840,-1512.21,0.00022054,3]
[348890228,1736857839850,-2160.58,0.00022054,3]
[348890231,1736857839860,-500.0,0.00022054,3]
[348890232,1736857839870,-1910.55,0.00022054,3]
[348890235,1736857839880,-546.89,0.00022054,3]
[348890237,1736857839891,-1242.58,0.00022054,3]
[348890238,1736857839900,-405.75087411,0.00022054,3]
[348890241,1736857839912,-500.0,0.00022054,3]
[348890243,1736857839922,-2579.71,0.00022054,3]
[348890245,1736857839931,-500.0,0.00022054,3]
[348890247,1736857839941,-500.0,0.00022054,3]
[348890249,1736857839951,-500.0,0.00022054,3]
[348890251,1736857839960,-500.0,0.00022054,3]
[348890253,1736857839970,-500.0,0.00022054,3]
[348890255,1736857839979,-30738.34,0.00022054,2]
[348890257,1736857839988,-1244.18,0.00022054,3]
[348890259,1736857839997,-47126.45,0.00022054,3]
[348890261,1736857840007,-2526.5,0.00022054,3]
[348890263,1736857840016,-782.96,0.00022054,3]
[348890265,1736857840025,-562.07,0.00022054,3]
[348890267,1736857840035,-444.14646199,0.00022054,3]
[348890269,1736857840044,-500.0,0.00022054,3]
[348890271,1736857840054,-500.0,0.00022054,3]
[348890285,1736857840180,-2039.5,0.00022054,3]
[348890287,1736857840190,-5864.58,0.00022054,2]
[348890289,1736857840199,-789.92,0.00022054,3]
[348890291,1736857840211,-500.0,0.00022054,3]
[348890293,1736857840220,-7104.61,0.00022054,3]
[348890295,1736857840230,-726.98,0.00022054,3]
[348890297,1736857840240,-500.0,0.00022054,3]
[348890299,1736857840251,-7015.47,0.00022054,3]
[348890301,1736857840261,-500.0,0.00022054,3]
[348890303,1736857840271,-500.0,0.00022054,3]
[348890305,1736857840281,-1677.0,0.00022054,3]
[348890306,1736857840290,-500.0,0.00022054,3]
[348890308,1736857840300,-500.0,0.00022054,3]
[348890310,1736857840310,-500.0,0.00022054,3]
[348890312,1736857840319,-2275.95,0.00022054,3]
[348890314,1736857840329,-642.44,0.00022054,3]
[348890316,1736857840338,-500.0,0.00022054,3]
[348890318,1736857840347,-519.27,0.00022054,3]
[348890320,1736857840357,-500.0,0.00022054,3]
[348890322,1736857840366,-936.83,0.00022054,3]
[348890324,1736857840375,-500.0,0.00022054,3]
[348890326,1736857840385,-500.0,0.00022054,3]
[348890328,1736857840394,-500.0,0.00022054,3]
[348890330,1736857840403,-749.97,0.00022054,3]
[348890332,1736857840414,-732.75,0.00022054,3]
[348890333,1736857840424,-411.30220088,0.00022054,3]
[348890334,1736857840433,-634.61306528,0.00022054,3]
[348890336,1736857840443,-500.0,0.00022054,3]
[348890338,1736857840453,-500.0,0.00022054,3]
[348890340,1736857840462,-529.41,0.00022054,3]
[348890342,1736857840471,-500.0,0.00022054,3]
[348890344,1736857840480,-573.71,0.00022054,3]
[348890346,1736857840490,-520.25,0.00022054,3]
[348890348,1736857840499,-500.0,0.00022054,3]
[348890350,1736857840508,-500.0,0.00022054,3]
[348890352,1736857840517,-722.95,0.00022054,3]
[348890354,1736857840526,-1796.32,0.00022054,3]
[348890356,1736857840536,-577.44,0.00022054,3]
[348890358,1736857840545,-868.43,0.00022054,3]
[348890359,1736857840554,-4657.26,0.00022054,3]
[348890360,1736857840564,-1107.01,0.00022054,3]
[348890361,1736857840574,-500.0,0.00022054,3]
[348890362,1736857840583,-500.0,0.00022054,3]
[348890363,1736857840593,-512.69351591,0.00022054,3]
[348890364,1736857840603,-2106.8,0.00022054,3]
[348890365,1736857840612,-178.01108536,0.00022054,3]
[348890366,1736857840622,-522.33,0.00022054,3]
[348890367,1736857840631,-500.0,0.00022054,3]
[348890368,1736857840642,-1000.0,0.00022054,7]
[348890369,1736857840651,-549.07,0.00022054,3]
[348890370,1736857840661,-2251.09,0.00022054,3]
[348890371,1736857840671,-712.19,0.00022054,3]
[348890372,1736857840683,-1193.28,0.00022054,3]
[348890373,1736857840694,-500.0,0.00022054,3]
[348890374,1736857840703,-500.0,0.00022054,3]
[348890375,1736857840713,-1391.33,0.00022054,3]
[348890376,1736857840723,-566.98,0.00022054,3]
[348890377,1736857840733,-500.0,0.00022054,3]
[348890378,1736857840743,-500.0,0.00022054,3]
[348890379,1736857840752,-500.0,0.00022054,3]
[348890380,1736857840762,-4426.61,0.00022054,3]
[348890381,1736857840772,-4841.31,0.00022054,3]
[348890382,1736857840781,-11451.27,0.00022054,3]
[348890383,1736857840791,-1105.85,0.00022054,3]
[348890385,1736857840800,-500.0,0.00022054,3]
[348890387,1736857840810,-500.0,0.00022054,3]
[348890388,1736857840819,-500.0,0.00022054,3]
[348890389,1736857840828,-1904.81,0.00022054,3]
[348890391,1736857840837,-500.0,0.00022054,3]
[348890393,1736857840846,-345.76645736,0.00022073,2]
[348890395,1736857840856,-257.13421959,0.00022073,2]
[348890397,1736857840865,-500.0,0.00022073,2]
[348890399,1736857840875,-500.0,0.00022073,2]
[348890401,1736857840884,-212.07383437,0.00022073,2]
[348890402,1736857840894,-249.59321506,0.00022073,2]
[348890404,1736857840904,-248.01226235,0.00022073,2]
[348890406,1736857840914,-151.06838338,0.00022073,2]
[348890408,1736857840924,-152.06887706,0.00022073,2]
[348890410,1736857840933,-500.0,0.00022073,2]
[348890412,1736857840942,-500.0,0.00022073,2]
[348890414,1736857840952,-500.0,0.00022073,2]
[348890416,1736857840961,-629.84447502,0.00022073,2]
[348890418,1736857840970,-500.0,0.00022073,2]
[348890419,1736857840979,-500.0,0.00022073,2]
[348890420,1736857840989,-2177.61,0.000221,14]
[348890421,1736857840998,-5543.29,0.000221,14]
[348890422,1736857841008,-11579.36,0.000221,2]
[348890423,1736857841018,-1382.50632014,0.00022107,2]
[348890424,1736857841027,-500.0,0.00022173,2]
[348890425,1736857841036,-269.34086314,0.00022173,2]
[348890426,1736857841045,-500.0,0.00022173,2]
[348890427,1736857841054,-266.79604712,0.00022173,2]
[348890428,1736857841063,-500.0,0.00022173,2]
[348890429,1736857841072,-500.0,0.00022173,2]
[348890430,1736857841081,-500.0,0.00022173,2]
[348890431,1736857841090,-500.67264426,0.00022173,2]
[348890432,1736857841100,-500.0,0.00022173,2]
[348890433,1736857841109,-500.0,0.00022173,2]
[348890434,1736857841118,-500.0,0.00022173,2]
[348890435,1736857841127,-500.0,0.00022173,2]
[348890436,1736857841137,-500.76538866,0.00022173,2]
[348890437,1736857841146,-502.57127884,0.00022173,2]
[348890438,1736857841155,-518.63057846,0.00022173,2]
[348890439,1736857841166,-151.0,0.00022173,7]
[348890440,1736857841178,-151.0,0.00022173,7]
[348890441,1736857841187,-160.001985,0.00022173,7]
[348890442,1736857841196,-160.001985,0.00022173,7]
[348890443,1736857841205,-1382.50632014,0.00022176,2]
[348890444,1736857841215,-151.0,0.00022189,6]
[348890445,1736857841224,-151.0,0.00022191,7]
[348890446,1736857841234,-151.0,0.00022191,7]
[348890447,1736857841243,-151.0,0.00022191,7]
[348890448,1736857841253,-500.0,0.00022191,3]
[348890449,1736857841263,-500.0,0.00022191,3]
[348890450,1736857841272,-500.0,0.00022191,3]
[348890451,1736857841281,-500.0,0.00022191,3]
[348890452,1736857841291,-503.75231007,0.00022191,3]
[348890453,1736857841300,-500.0,0.00022191,3]
[348890454,1736857841309,-504.20549591,0.00022191,3]
[348890455,1736857841319,-500.0,0.00022191,3]
[348890456,1736857841328,-500.0,0.00022191,3]
[348890457,1736857841337,-508.36563686,0.00022191,3]
[348890458,1736857841347,-558.47,0.00022191,3]
[348890459,1736857841356,-500.0,0.00022191,3]
[348890460,1736857841365,-567.74,0.00022191,3]
[348890461,1736857841375,-500.0,0.00022191,3]
[348890462,1736857841384,-500.0,0.00022191,3]
[348890463,1736857841393,-574.55868087,0.00022191,3]
[348890464,1736857841403,-500.0,0.00022191,3]
[348890465,1736857841413,-500.0,0.00022191,3]
[348890466,1736857841422,-500.0,0.00022191,3]
[348890467,1736857841431,-500.0,0.00022191,3]
[348890468,1736857841441,-264.65573643,0.00022191,3]
[348890469,1736857841452,-500.0,0.00022191,3]
[348890470,1736857841461,-539.98465634,0.00022191,3]
[348890471,1736857841471,-500.0,0.00022191,3]
[348890472,1736857841481,-500.0,0.00022191,3]
[348890473,1736857841491,-500.0,0.00022191,3]
[348890474,1736857841500,-500.0,0.00022191,3]
[348890475,1736857841510,-500.0,0.00022191,3]
[348890476,1736857841520,-500.0,0.00022191,3]
[348890477,1736857841529,-287.99434974,0.00022191,3]
[348890478,1736857841539,-500.0,0.00022191,3]
[348890479,1736857841548,-500.0,0.00022191,3]
[348890480,1736857841558,-500.0,0.00022191,3]
[348890481,1736857841567,-644.18,0.00022191,3]
[348890482,1736857841576,-563.14571511,0.00022191,3]
[348890483,1736857841586,-500.0,0.00022191,3]
[348890484,1736857841595,-500.0,0.00022191,3]
[348890485,1736857841604,-500.0,0.00022191,3]
[348890486,1736857841614,-500.0,0.00022191,3]
[348890487,1736857841623,-500.0,0.00022191,3]
[348890488,1736857841632,-271.07427704,0.00022191,3]
[348890489,1736857841642,-500.0,0.00022191,3]
[348890490,1736857841651,-500.0,0.00022191,3]
[348890491,1736857841662,-845.22,0.00022191,3]
[348890492,1736857841671,-500.0,0.00022191,3]
[348890493,1736857841683,-500.0,0.00022191,3]
[348890494,1736857841692,-500.0,0.00022191,3]
[348890495,1736857841702,-500.0,0.00022191,3]
[348890496,1736857841711,-163.26094363,0.00022191,3]
[348890497,1736857841721,-500.0,0.00022191,3]
[348890498,1736857841731,-500.0,0.00022191,3]
[348890499,1736857841740,-500.0,0.00022191,3]
[348890500,1736857841749,-500.0,0.00022191,3]
[348890501,1736857841758,-500.0,0.00022191,3]
[348890502,1736857841768,-1113.97,0.00022191,3]
[348890503,1736857841778,-151.0,0.00022191,7]
[348890504,1736857841787,-500.0,0.00022191,3]
[348890505,1736857841796,-151.0,0.00022191,7]
[348890506,1736857841806,-704.3,0.00022191,3]
[348890507,1736857841816,-151.0,0.00022191,7]
[348890508,1736857841828,-151.0,0.00022191,7]
[348890509,1736857841838,-500.0,0.00022191,3]
[348890510,1736857841847,-573.11,0.00022191,3]
[348890511,1736857841856,-500.0,0.00022191,3]
[348890512,1736857841866,-839.5,0.00022191,3]
[348890513,1736857841875,-500.0,0.00022191,3]
[348890514,1736857841885,-500.0,0.00022191,3]
[348890515,1736857841895,-128.73690331,0.00022191,3]
[348890530,1736857843050,-4187.20511534,0.00021696,2]
[348890532,1736857843061,-500.0,0.00021915,2]
[348890534,1736857843070,-500.0,0.00021915,2]
[348890536,1736857843080,-500.0,0.00021915,2]
[348890538,1736857843089,-500.0,0.00021915,2]
[348890540,1736857843098,-600.1448605,0.00021915,2]
[348890542,1736857843108,-500.0,0.00021915,2]
[348890545,1736857843118,-500.0,0.00021915,2]
[348890547,1736857843127,-542.85773027,0.00021915,2]
[348890549,1736857843136,-500.0,0.00021915,2]
[348890551,1736857843145,-620.0,0.00021915,2]
[348890553,1736857843154,-500.0,0.00021915,2]
[348890555,1736857843163,-500.0,0.00021915,2]
[348890557,1736857843176,-500.0,0.00021915,2]
[348890559,1736857843185,-500.0,0.00021915,2]
[348890561,1736857843194,-276.60862149,0.00021915,2]
[348890563,1736857843203,-500.0,0.00021915,2]
[348890565,1736857843212,-500.0,0.00021915,2]
[348890567,1736857843223,-500.0,0.00021915,2]
[348890569,1736857843232,-505.80023658,0.00021915,2]
[348890571,1736857843241,-500.0,0.00021915,2]
[348890573,1736857843251,-150.18,0.00022054,3]
[348890575,1736857843261,-129.14546195,0.00022191,3]
[348890577,1736857843269,-500.0,0.00022191,3]
[348890579,1736857843279,-500.0,0.00022191,3]
[348890581,1736857843288,-500.0,0.00022191,3]
[348890583,1736857843298,-500.0,0.00022191,3]
[348890585,1736857843307,-389.80150154,0.00022191,3]
[348890587,1736857843316,-500.0,0.00022191,3]
[348890589,1736857843325,-409.55808804,0.00022191,3]
[348890591,1736857843337,-90.44191196,0.00022191,3]
[348890593,1736857843346,-500.0,0.00022191,3]
[348890595,1736857843355,-510.41590572,0.00022191,3]
[348890597,1736857843365,-535.91,0.00022191,3]
[348890599,1736857843374,-500.0,0.00022191,3]
[348890601,1736857843383,-716.94,0.00022191,3]
[348890603,1736857843392,-500.0,0.00022191,3]
[348890605,1736857843401,-992.53,0.00022191,3]
[348890607,1736857843411,-500.0,0.00022191,3]
[348890609,1736857843421,-500.0,0.00022191,3]
[348890611,1736857843430,-500.0,0.00022191,3]
[348890613,1736857843439,-699.56,0.00022191,3]
[348890615,1736857843448,-500.0,0.00022191,3]
[348890617,1736857843458,-194.80244603,0.00022191,3]
[348890619,1736857843467,-160.001985,0.00022191,7]
[348890622,1736857843476,-160.001985,0.00022191,7]
[348890625,1736857843486,-160.001985,0.00022191,7]
[348890628,1736857843495,-606.77638861,0.00022191,3]
[348890631,1736857843504,-160.001985,0.00022191,7]
[348890632,1736857843513,-500.0,0.00022191,3]
[348890635,1736857843523,-500.0,0.00022191,3]
[348890638,1736857843532,-500.0,0.00022191,3]
[348890641,1736857843541,-313.32470078,0.00022191,3]
[348890645,1736857843553,-186.67529922,0.00022191,3]
[348890649,1736857843562,-500.0,0.00022191,3]
[348890652,1736857843571,-500.0,0.00022191,3]
[348890655,1736857843580,-500.0,0.00022191,3]
[348890658,1736857843589,-982.18,0.00022191,3]
[348890661,1736857843598,-1225.41,0.00022191,3]
[348890664,1736857843607,-500.0,0.00022191,3]
[348890667,1736857843616,-500.0,0.00022191,3]
[348890670,1736857843626,-500.0,0.00022191,3]
[348890673,1736857843635,-500.0,0.00022191,3]
[348890676,1736857843644,-902.9,0.00022191,3]
[348890678,1736857843653,-500.0,0.00022191,3]
[348890682,1736857843663,-500.0,0.00022191,3]
[348890685,1736857843675,-1431.67,0.00022191,3]
[348890687,1736857843686,-772.73,0.00022191,3]
[348890689,1736857843695,-151.0,0.00022191,7]
[348890691,1736857843704,-151.0,0.00022191,7]
[348890693,1736857843714,-151.0,0.00022191,7]
[348890695,1736857843723,-500.0,0.00022191,3]
[348890697,1736857843733,-500.0,0.00022191,3]
[348890699,1736857843742,-206.78421296,0.00022191,3]
[348890701,1736857843751,-181.91634277,0.00022191,3]
[348890703,1736857843760,-1359.3,0.00022191,3]
[348890705,1736857843770,-1063.85,0.00022191,3]
[348890707,1736857843779,-927.12,0.00022191,3]
[348890709,1736857843788,-500.0,0.00022191,3]
[348890711,1736857843797,-1009.04,0.00022191,3]
[348890713,1736857843806,-500.0,0.00022191,3]
[348890715,1736857843815,-500.0,0.00022191,3]
[348890717,1736857843824,-537.48979238,0.00022191,3]
[348890719,1736857843833,-660.07,0.00022191,3]
[348890721,1736857843842,-500.0,0.00022191,3]
[348890723,1736857843852,-511.32,0.00022191,3]
[348890725,1736857843861,-505.16,0.00022191,3]
[348890727,1736857843870,-928.13,0.00022191,3]
[348890729,1736857843879,-500.0,0.00022191,3]
[348890731,1736857843888,-962.96,0.00022191,2]
[348890733,1736857843897,-223.81653082,0.00022191,3]
[348890735,1736857843906,-547.61,0.00022191,3]
[348890737,1736857843916,-500.0,0.00022191,3]
[348890739,1736857843925,-500.0,0.00022191,3]
[348890741,1736857843935,-500.0,0.00022191,3]
[348890743,1736857843944,-821.44,0.00022191,3]
[348890745,1736857843953,-500.0,0.00022191,3]
[348890747,1736857843962,-500.0,0.00022191,3]
[348890749,1736857843971,-500.0,0.00022191,3]
[348890751,1736857843980,-789.89,0.00022191,3]
[348890753,1736857843989,-819.9918111,0.00022191,3]
[348890756,1736857844002,-163.0881889,0.00022191,3]
[348890757,1736857844011,-500.0,0.00022191,3]
[348890760,1736857844021,-918.12,0.00022191,3]
[348890762,1736857844030,-500.0,0.00022191,3]
[348890764,1736857844039,-552.3,0.00022191,3]
[348890766,1736857844048,-500.0,0.00022191,3]
[348890768,1736857844058,-500.0,0.00022191,3]
[348890770,1736857844068,-500.0,0.00022191,3]
[348890772,1736857844077,-509.22086434,0.00022191,3]
[348890774,1736857844086,-8109.88288165,0.00022191,3]
[348890776,1736857844098,-2953.67711835,0.00022191,3]
[348890778,1736857844107,-500.0,0.00022191,3]
[348890780,1736857844116,-546.94,0.00022191,3]
[348890782,1736857844125,-500.0,0.00022191,3]
[348890784,1736857844134,-500.0,0.00022191,3]
[348890786,1736857844143,-500.0,0.00022191,3]
[348890788,1736857844152,-500.0,0.00022191,3]
[348890790,1736857844162,-3234.71,0.00022191,3]
[348890792,1736857844175,-1278.3,0.00022191,3]
[348890794,1736857844184,-519.78,0.00022191,3]
[348890796,1736857844193,-504.62332342,0.00022191,3]
[348890798,1736857844202,-500.0,0.00022191,3]
[348890800,1736857844212,-491.53949118,0.00022191,3]
[348890803,1736857844228,-242.95275275,0.00021817,2]
[348890805,1736857844237,-8.46050882,0.00022191,3]
[348890807,1736857844247,-723.07,0.00022191,3]
[348890809,1736857844256,-500.0,0.00022191,3]
[348890810,1736857844265,-500.0,0.00022191,3]
[348890812,1736857844274,-500.0,0.00022191,3]
[348890815,1736857844283,-682.87,0.00022191,3]
[348890817,1736857844292,-500.0,0.00022191,3]
[348890819,1736857844302,-500.0,0.00022191,3]
[348890821,1736857844311,-835.18,0.00022191,3]
[348890823,1736857844320,-800.38,0.00022191,3]
[348890825,1736857844329,-1369.47,0.00022191,3]
[348890835,1736857844452,-500.0,0.00022191,3]
[348890836,1736857844462,-504.67,0.00022191,3]
[348890837,1736857844473,-500.0,0.00022191,3]
[348890838,1736857844483,-500.0,0.00022191,3]
[348890839,1736857844492,-500.0,0.00022191,3]
[348890840,1736857844502,-1827.1,0.00022191,3]
[348890841,1736857844511,-529.47,0.00022191,3]
[348890842,1736857844521,-1006.65,0.00022191,3]
[348890843,1736857844531,-578.75,0.00022191,3]
[348890844,1736857844540,-1694.73,0.00022191,3]
[348890845,1736857844549,-500.0,0.00022191,3]
[348890846,1736857844569,-590.67,0.00022191,3]
[348890847,1736857844581,-537.32,0.00022191,3]
[348890848,1736857844591,-1260.82,0.00022191,3]
[348890849,1736857844602,-798.3,0.00022191,3]
[348890850,1736857844612,-500.0,0.00022191,3]
[348890851,1736857844622,-500.0,0.00022191,3]
[348890852,1736857844632,-1482.6,0.00022191,3]
[348890853,1736857844642,-791.28,0.00022191,3]
[348890854,1736857844652,-500.0,0.00022191,3]
[348890855,1736857844663,-4247.35,0.00022191,3]
[348890856,1736857844674,-500.0,0.00022191,3]
[348890857,1736857844685,-305.47290958,0.00022191,3]
[348890858,1736857844695,-255.5761603,0.00022191,3]
[348890859,1736857844706,-1386.0,0.00022191,3]
[348890861,1736857844716,-500.0,0.00022191,3]
[348890863,1736857844726,-556.13,0.00022191,3]
[348890865,1736857844735,-500.0,0.00022191,3]
[348890867,1736857844745,-509.57,0.00022191,3]
[348890868,1736857844756,-519.93,0.00022191,3]
[348890869,1736857844766,-500.0,0.00022191,3]
[348890870,1736857844775,-500.0,0.00022191,3]
[348890871,1736857844786,-151.4013995,0.00022191,3]
[348890872,1736857844796,-170.39137703,0.00022191,3]
[348890873,1736857844806,-500.0,0.00022191,3]
[348890874,1736857844817,-625.5,0.00022191,3]
[348890875,1736857844827,-855.29,0.00022191,3]
[348890876,1736857844837,-509.08,0.00022191,3]
[348890877,1736857844850,-1512.21,0.00022191,3]
[348890878,1736857844863,-2160.58,0.00022191,3]
[348890879,1736857844873,-500.0,0.00022191,3]
[348890880,1736857844883,-1910.55,0.00022191,3]
[348890881,1736857844893,-546.89,0.00022191,3]
[348890882,1736857844904,-1242.58,0.00022191,3]
[348890883,1736857844915,-500.0,0.00022191,3]
[348890884,1736857844925,-2579.71,0.00022191,3]
[348890885,1736857844935,-500.0,0.00022191,3]
[348890886,1736857844946,-488.82947018,0.00022191,3]
[348890887,1736857844958,-500.0,0.00022191,3]
[348890888,1736857844968,-500.0,0.00022191,3]
[348890889,1736857844979,-500.0,0.00022191,3]
[348890890,1736857844989,-30738.34,0.00022191,2]
[348890891,1736857845003,-1244.18,0.00022191,3]
[348890892,1736857845013,-9349.66467314,0.00022191,3]
[348890893,1736857845028,-1036.134,0.00022191,3]
[348890894,1736857845225,-3625.51564525,0.00022191,3]
[348890895,1736857845478,-892.5796797,0.00022191,3]
[348890896,1736857845489,-366.0670543,0.00022191,3]
[348890897,1736857845501,-2354.00002703,0.00022191,3]
[348890898,1736857845513,-330.44496779,0.00022191,3]
[348890899,1736857845524,-574.88078246,0.00022191,3]
[348890900,1736857845537,-652.04400064,0.00022191,3]
[348890901,1736857845552,-3176.3962532,0.00022191,3]
[348890902,1736857845563,-24768.72291649,0.00022191,3]
[348890903,1736857845572,-2526.5,0.00022191,3]
[348890904,1736857845583,-782.96,0.00022191,3]
[348890905,1736857845592,-562.07,0.00022191,3]
[348890906,1736857845602,-500.0,0.00022191,3]
[348890907,1736857845611,-500.0,0.00022191,3]
[348890908,1736857845620,-2039.5,0.00022191,3]
[348890909,1736857845630,-5864.58,0.00022191,2]
[348890910,1736857845639,-789.92,0.00022191,3]
[348890911,1736857845649,-500.0,0.00022191,3]
[348890912,1736857845658,-7104.61,0.00022191,3]
[348890913,1736857845668,-726.98,0.00022191,3]
[348890914,1736857845679,-500.0,0.00022191,3]
[348890915,1736857845688,-7015.47,0.00022191,3]
[348890916,1736857845698,-500.0,0.00022191,3]
[348890918,1736857845709,-500.0,0.00022191,3]
[348890920,1736857845720,-1677.0,0.00022191,3]
[348890921,1736857845729,-500.0,0.00022191,3]
[348890922,1736857845739,-500.0,0.00022191,3]
[348890923,1736857845748,-642.44,0.00022191,3]
[348890924,1736857845758,-2275.95,0.00022191,3]
[348890925,1736857845768,-500.0,0.00022191,3]
[348890926,1736857845779,-519.27,0.00022191,3]
[348890927,1736857845788,-500.0,0.00022191,3]
[348890928,1736857845798,-387.47778026,0.00022191,3]
[348890929,1736857845807,-936.83,0.00022191,3]
[348890930,1736857845817,-500.0,0.00022191,3]